[Event "Late-Titled-Tuesday-Blitz-May-14-2024"]
[Site "Chess.com"]
[Date "2024.05.14"]
[Round "11"]
[White "Viktoker"]
[Black "ansko1999"]
[Result "1-0"]
[WhiteElo "2444"]
[BlackElo "2634"]
[TimeControl "180+1"]
[EndTime "16:05:03 PDT"]
[Termination "Viktoker won by checkmate"]

1. d4 {[%clk 0:02:58.5]} 1... d5 {[%clk 0:02:59.8]} 2. c4 {[%clk 0:02:57.9]}
2... c5 {[%clk 0:02:59.9]} 3. cxd5 {[%clk 0:02:54.7]} 3... Nf6 {[%clk
0:02:59.1]} 4. Nf3 {[%clk 0:02:51.5]} 4... cxd4 {[%clk 0:02:58]} 5. Nxd4 {[%clk
0:02:47.7]} 5... Nxd5 {[%clk 0:02:57.5]} 6. e4 {[%clk 0:02:36]} 6... Nf6 {[%clk
0:02:56.9]} 7. Nc3 {[%clk 0:02:35.7]} 7... e5 {[%clk 0:02:56.9]} 8. Nf3 {[%clk
0:02:33.4]} 8... Qxd1+ {[%clk 0:02:54.4]} 9. Kxd1 {[%clk 0:02:33.5]} 9... Nc6
{[%clk 0:02:45.9]} 10. Bb5 {[%clk 0:02:29]} 10... Bg4 {[%clk 0:02:44.1]} 11. Be3
{[%clk 0:02:21.4]} 11... O-O-O+ {[%clk 0:02:31.2]} 12. Kc2 {[%clk 0:02:21.3]}
12... Nd4+ {[%clk 0:02:18.4]} 13. Bxd4 {[%clk 0:01:14.1]} 13... exd4 {[%clk
0:02:19.3]} 14. Ne2 {[%clk 0:01:13.1]} 14... Nxe4 {[%clk 0:02:03.2]} 15. Rhf1
{[%clk 0:01:12.3]} 15... Bxf3 {[%clk 0:01:48.6]} 16. gxf3 {[%clk 0:01:12]} 16...
Nc5 {[%clk 0:01:46]} 17. Bd3 {[%clk 0:01:08.9]} 17... Nxd3 {[%clk 0:01:42.6]}
18. Kxd3 {[%clk 0:01:08.8]} 18... Kb8 {[%clk 0:01:37.9]} 19. Rac1 {[%clk
0:01:08.3]} 19... Be7 {[%clk 0:01:37.7]} 20. Rg1 {[%clk 0:01:07.4]} 20... Bf6
{[%clk 0:01:37.5]} 21. Nf4 {[%clk 0:01:05.3]} 21... g6 {[%clk 0:01:33.4]} 22.
Ne2 {[%clk 0:01:00.5]} 22... Rd5 {[%clk 0:01:25.7]} 23. Ng3 {[%clk 0:01:00.3]}
23... Bg5 {[%clk 0:01:16.3]} 24. Rc4 {[%clk 0:00:59.2]} 24... f5 {[%clk
0:01:12.6]} 25. Nh5 {[%clk 0:00:50]} 25... Bh6 {[%clk 0:00:58]} 26. Ng3 {[%clk
0:00:48.2]} 26... Re8 {[%clk 0:00:52.2]} 27. h4 {[%clk 0:00:48]} 27... b5 {[%clk
0:00:46.9]} 28. Rc6 {[%clk 0:00:45.4]} 28... Rc8 {[%clk 0:00:37.2]} 29. Rxc8+
{[%clk 0:00:44.3]} 29... Kxc8 {[%clk 0:00:38.1]} 30. h5 {[%clk 0:00:45.1]} 30...
f4 {[%clk 0:00:23.3]} 31. hxg6 {[%clk 0:00:33.1]} 31... fxg3 {[%clk 0:00:18.8]}
32. gxh7 {[%clk 0:00:33.3]} 32... Rd8 {[%clk 0:00:16.6]} 33. Rxg3 {[%clk
0:00:31.5]} 33... Bf4 {[%clk 0:00:13.2]} 34. Rg8 {[%clk 0:00:31.6]} 34... Be5
{[%clk 0:00:13.5]} 35. f4 {[%clk 0:00:30.1]} 35... Bh8 {[%clk 0:00:10.5]} 36.
Rg5 {[%clk 0:00:21.9]} 36... a6 {[%clk 0:00:08.9]} 37. Rg6 {[%clk 0:00:20.2]}
37... Kb7 {[%clk 0:00:06.7]} 38. Rg8 {[%clk 0:00:20.4]} 38... Kc7 {[%clk
0:00:06.2]} 39. Rg6 {[%clk 0:00:20.7]} 39... a5 {[%clk 0:00:05.9]} 40. Rg8
{[%clk 0:00:14]} 40... Kd7 {[%clk 0:00:04.2]} 41. Rg5 {[%clk 0:00:12]} 41... Rb8
{[%clk 0:00:03.6]} 42. Rg8 {[%clk 0:00:10.9]} 42... Re8 {[%clk 0:00:02.8]} 43.
Rg5 {[%clk 0:00:10.3]} 43... Kc6 {[%clk 0:00:01]} 44. Rg6+ {[%clk 0:00:10]}
44... Kc5 {[%clk 0:00:01.8]} 45. Rg5+ {[%clk 0:00:09.5]} 45... Kb4 {[%clk
0:00:02.5]} 46. a3+ {[%clk 0:00:09.6]} 46... Ka4 {[%clk 0:00:02.7]} 47. Rg8
{[%clk 0:00:07.7]} 47... Re7 {[%clk 0:00:01.7]} 48. Rxh8 {[%clk 0:00:07.9]}
48... Kb3 {[%clk 0:00:02.4]} 49. Rb8 {[%clk 0:00:05.4]} 49... b4 {[%clk
0:00:02.8]} 50. h8=Q {[%clk 0:00:05.1]} 50... Kxb2 {[%clk 0:00:02.8]} 51. Qxd4+
{[%clk 0:00:05.3]} 51... Kxa3 {[%clk 0:00:02.7]} 52. Qa1+ {[%clk 0:00:03.9]}
52... Kb3 {[%clk 0:00:03.1]} 53. Qxa5 {[%clk 0:00:04]} 53... Rd7+ {[%clk
0:00:03.4]} 54. Ke3 {[%clk 0:00:04.2]} 54... Re7+ {[%clk 0:00:03.3]} 55. Qe5
{[%clk 0:00:03.1]} 55... Rxe5+ {[%clk 0:00:03.2]} 56. fxe5 {[%clk 0:00:03.3]}
56... Kc4 {[%clk 0:00:04.1]} 57. e6 {[%clk 0:00:03.6]} 57... Kd5 {[%clk
0:00:04.7]} 58. e7 {[%clk 0:00:04]} 58... b3 {[%clk 0:00:05.2]} 59. e8=Q {[%clk
0:00:04.4]} 59... b2 {[%clk 0:00:06.1]} 60. Qe4+ {[%clk 0:00:04.7]} 60... Kc5
{[%clk 0:00:06.1]} 61. Rc8+ {[%clk 0:00:04.3]} 61... Kd6 {[%clk 0:00:07]} 62.
Qc6+ {[%clk 0:00:04.2]} 62... Ke5 {[%clk 0:00:07.2]} 63. Re8+ {[%clk 0:00:04.7]}
63... Kf5 {[%clk 0:00:07.8]} 64. Qe6+ {[%clk 0:00:05.2]} 64... Kg5 {[%clk
0:00:08]} 65. Rg8+ {[%clk 0:00:05.9]} 65... Kh4 {[%clk 0:00:08.5]} 66. Qg4#
{[%clk 0:00:06.1]} 1-0

[Event "Late-Titled-Tuesday-Blitz-May-14-2024"]
[Site "Chess.com"]
[Date "2024.05.14"]
[Round "11"]
[White "David_ATM"]
[Black "rionelG"]
[Result "0-1"]
[WhiteElo "2436"]
[BlackElo "2331"]
[TimeControl "180+1"]
[EndTime "16:05:04 PDT"]
[Termination "rionelG won by resignation"]

1. e4 {[%clk 0:03:00.9]} 1... c5 {[%clk 0:02:41.5]} 2. c3 {[%clk 0:03:00.6]}
2... d5 {[%clk 0:02:41.1]} 3. exd5 {[%clk 0:03:01.5]} 3... Qxd5 {[%clk
0:02:41.8]} 4. d4 {[%clk 0:03:02.4]} 4... Nc6 {[%clk 0:02:42.2]} 5. Nf3 {[%clk
0:03:03.3]} 5... Nf6 {[%clk 0:02:42.5]} 6. Be2 {[%clk 0:03:03.5]} 6... cxd4
{[%clk 0:02:41.1]} 7. cxd4 {[%clk 0:03:02.5]} 7... e6 {[%clk 0:02:41.8]} 8. Nc3
{[%clk 0:03:02.5]} 8... Qd6 {[%clk 0:02:42.2]} 9. O-O {[%clk 0:03:02.3]} 9...
Be7 {[%clk 0:02:42.3]} 10. Be3 {[%clk 0:03:01.2]} 10... O-O {[%clk 0:02:41]} 11.
Qd3 {[%clk 0:03:01.3]} 11... Nb4 {[%clk 0:02:40.4]} 12. Qb1 {[%clk 0:02:57.9]}
12... b6 {[%clk 0:02:39.4]} 13. Ne4 {[%clk 0:02:55.5]} 13... Nxe4 {[%clk
0:02:26.6]} 14. Qxe4 {[%clk 0:02:56.4]} 14... Ba6 {[%clk 0:02:20.7]} 15. Bxa6
{[%clk 0:02:34.1]} 15... Nxa6 {[%clk 0:02:21.6]} 16. Rfd1 {[%clk 0:02:33]} 16...
Nb4 {[%clk 0:02:20.6]} 17. Bf4 {[%clk 0:02:13]} 17... Qd5 {[%clk 0:02:14.8]} 18.
Qxd5 {[%clk 0:02:09.6]} 18... Nxd5 {[%clk 0:02:15.7]} 19. Be5 {[%clk 0:02:09.6]}
19... Rac8 {[%clk 0:02:14.7]} 20. Rac1 {[%clk 0:02:09.4]} 20... f6 {[%clk
0:02:08.6]} 21. Bg3 {[%clk 0:02:08.5]} 21... Kf7 {[%clk 0:02:08.1]} 22. Kf1
{[%clk 0:02:08.4]} 22... g5 {[%clk 0:02:04.8]} 23. h4 {[%clk 0:01:54.5]} 23...
h6 {[%clk 0:02:02.1]} 24. h5 {[%clk 0:01:46.5]} 24... Rfd8 {[%clk 0:01:53.9]}
25. Ke2 {[%clk 0:01:45.4]} 25... Ke8 {[%clk 0:01:53.1]} 26. a3 {[%clk
0:01:43.4]} 26... Kd7 {[%clk 0:01:52.5]} 27. Kd3 {[%clk 0:01:42.6]} 27... Bd6
{[%clk 0:01:49.1]} 28. Bxd6 {[%clk 0:01:37.2]} 28... Kxd6 {[%clk 0:01:50]} 29.
g3 {[%clk 0:01:35.9]} 29... Ne7 {[%clk 0:01:40.3]} 30. Nd2 {[%clk 0:01:28.9]}
30... Nf5 {[%clk 0:01:35.9]} 31. g4 {[%clk 0:01:18.8]} 31... Nh4 {[%clk
0:01:23.4]} 32. Rxc8 {[%clk 0:01:10.8]} 32... Rxc8 {[%clk 0:01:22.9]} 33. Rg1
{[%clk 0:00:35]} 33... f5 {[%clk 0:01:04.5]} 34. gxf5 {[%clk 0:00:08.9]} 34...
exf5 {[%clk 0:01:00.2]} 35. Re1 {[%clk 0:00:08.4]} 35... Ng2 {[%clk 0:00:55.7]}
36. Nc4+ {[%clk 0:00:08.5]} 36... Kd7 {[%clk 0:00:43.4]} 37. Ne5+ {[%clk
0:00:08.4]} 37... Ke6 {[%clk 0:00:39.8]} 38. Rg1 {[%clk 0:00:04.1]} 38... Nf4+
{[%clk 0:00:39]} 39. Kd2 {[%clk 0:00:04.5]} 39... Rd8 {[%clk 0:00:34.6]} 40. Ke3
{[%clk 0:00:02.2]} 40... Nxh5 {[%clk 0:00:27.3]} 41. Nc6 {[%clk 0:00:02.3]}
41... f4+ {[%clk 0:00:26.2]} 42. Kd3 {[%clk 0:00:01.3]} 42... Rd6 {[%clk
0:00:22.6]} 43. Nb4 {[%clk 0:00:01.8]} 43... Kf5 {[%clk 0:00:21.2]} 44. Rh1
{[%clk 0:00:02.2]} 44... Ng7 {[%clk 0:00:20.6]} 45. Kc4 {[%clk 0:00:02.2]} 45...
h5 {[%clk 0:00:19.9]} 46. Nd5 {[%clk 0:00:02.7]} 46... Rd7 {[%clk 0:00:15.1]}
47. Nc3 {[%clk 0:00:02.8]} 47... Ne6 {[%clk 0:00:13.9]} 48. d5 {[%clk
0:00:02.9]} 48... Ng7 {[%clk 0:00:14.2]} 49. Kd4 {[%clk 0:00:02.6]} 49... h4
{[%clk 0:00:14.1]} 50. f3 {[%clk 0:00:02.2]} 50... Ne6+ {[%clk 0:00:13.2]} 51.
Kc4 {[%clk 0:00:02]} 51... Nc5 {[%clk 0:00:12.7]} 52. b4 {[%clk 0:00:01.5]}
52... Nb7 {[%clk 0:00:12]} 53. Nb5 {[%clk 0:00:01.2]} 53... Nd6+ {[%clk
0:00:11.7]} 54. Nxd6+ {[%clk 0:00:01.7]} 54... Rxd6 {[%clk 0:00:12.6]} 55. Kd4
{[%clk 0:00:02.4]} 55... g4 {[%clk 0:00:11.5]} 56. Rxh4 {[%clk 0:00:02.7]} 56...
gxf3 {[%clk 0:00:11.5]} 57. Rh1 {[%clk 0:00:02.5]} 57... Kg4 {[%clk 0:00:10.9]}
58. Rg1+ {[%clk 0:00:03.1]} 58... Kh3 {[%clk 0:00:11.1]} 59. Ke4 {[%clk
0:00:02.1]} 59... f2 {[%clk 0:00:11.4]} 60. Rf1 {[%clk 0:00:02.8]} 60... Kg2
{[%clk 0:00:11.6]} 61. Rxf2+ {[%clk 0:00:01.3]} 61... Kxf2 {[%clk 0:00:11.4]}
0-1

[Event "Late-Titled-Tuesday-Blitz-May-14-2024"]
[Site "Chess.com"]
[Date "2024.05.14"]
[Round "11"]
[White "LiemLe"]
[Black "MITerryble"]
[Result "0-1"]
[WhiteElo "3045"]
[BlackElo "3029"]
[TimeControl "180+1"]
[EndTime "16:05:06 PDT"]
[Termination "MITerryble won by resignation"]

1. c4 {[%clk 0:03:00.9]} 1... e5 {[%clk 0:03:00]} 2. g3 {[%clk 0:03:00.6]} 2...
Nc6 {[%clk 0:03:00.4]} 3. Bg2 {[%clk 0:03:01]} 3... g6 {[%clk 0:03:01]} 4. Nc3
{[%clk 0:03:00.9]} 4... Bg7 {[%clk 0:03:01.7]} 5. d3 {[%clk 0:02:59.8]} 5...
Nge7 {[%clk 0:03:02.2]} 6. Nf3 {[%clk 0:02:56.6]} 6... d6 {[%clk 0:03:02.6]} 7.
O-O {[%clk 0:02:57.1]} 7... h6 {[%clk 0:02:57.3]} 8. Rb1 {[%clk 0:02:57.1]} 8...
f5 {[%clk 0:02:57.8]} 9. Bd2 {[%clk 0:02:49.8]} 9... Be6 {[%clk 0:02:57.9]} 10.
b4 {[%clk 0:02:49.9]} 10... Qd7 {[%clk 0:02:58.4]} 11. b5 {[%clk 0:02:45.9]}
11... Nd8 {[%clk 0:02:58.8]} 12. c5 {[%clk 0:02:46.1]} 12... d5 {[%clk
0:02:48.2]} 13. d4 {[%clk 0:02:38.9]} 13... exd4 {[%clk 0:02:35.9]} 14. Na4
{[%clk 0:02:38.5]} 14... a6 {[%clk 0:02:32.1]} 15. c6 {[%clk 0:02:34.4]} 15...
bxc6 {[%clk 0:02:31.4]} 16. bxa6 {[%clk 0:02:30.5]} 16... Bf7 {[%clk 0:02:18]}
17. Nc5 {[%clk 0:02:24.1]} 17... Qc8 {[%clk 0:02:18.3]} 18. Bf4 {[%clk
0:02:03.2]} 18... O-O {[%clk 0:02:07.1]} 19. Rb7 {[%clk 0:01:56.9]} 19... Ne6
{[%clk 0:02:05.1]} 20. Nxe6 {[%clk 0:01:51.5]} 20... Qxe6 {[%clk 0:02:05]} 21.
Nxd4 {[%clk 0:01:43.7]} 21... Qf6 {[%clk 0:02:04.5]} 22. Rxc7 {[%clk 0:01:17.3]}
22... Rxa6 {[%clk 0:02:03.1]} 23. Nf3 {[%clk 0:00:30.8]} 23... Qe6 {[%clk
0:01:42.4]} 24. Qc1 {[%clk 0:00:21.5]} 24... g5 {[%clk 0:01:33.3]} 25. Be3
{[%clk 0:00:16.3]} 25... Rc8 {[%clk 0:01:17.8]} 26. Nd4 {[%clk 0:00:13.2]} 26...
Qf6 {[%clk 0:01:08.4]} 27. Rxc8+ {[%clk 0:00:11.7]} 27... Nxc8 {[%clk
0:01:09.3]} 28. Rd1 {[%clk 0:00:11.1]} 28... Ne7 {[%clk 0:01:05.6]} 29. Qc2
{[%clk 0:00:08.7]} 29... f4 {[%clk 0:01:01.6]} 30. Bc1 {[%clk 0:00:09]} 30...
Qg6 {[%clk 0:00:54.8]} 31. Qb3 {[%clk 0:00:07.1]} 31... c5 {[%clk 0:00:44.5]}
32. Qb7 {[%clk 0:00:05.2]} 32... Bxd4 {[%clk 0:00:33.5]} 33. Qxe7 {[%clk
0:00:05.1]} 33... Rxa2 {[%clk 0:00:25.9]} 34. gxf4 {[%clk 0:00:02.8]} 34... gxf4
{[%clk 0:00:19.1]} 35. Bxf4 {[%clk 0:00:03.7]} 35... Qg4 {[%clk 0:00:13]} 36.
Be5 {[%clk 0:00:03]} 36... Bxe5 {[%clk 0:00:05.8]} 37. Qxe5 {[%clk 0:00:03.9]}
37... Rxe2 {[%clk 0:00:05.9]} 38. Qa1 {[%clk 0:00:02.6]} 38... d4 {[%clk
0:00:02.9]} 39. Rd3 {[%clk 0:00:03]} 39... Qf4 {[%clk 0:00:02.1]} 40. Rg3+
{[%clk 0:00:02.7]} 40... Kf8 {[%clk 0:00:02.6]} 41. Qa8+ {[%clk 0:00:02.9]}
41... Re8 {[%clk 0:00:03]} 42. Qc6 {[%clk 0:00:03.6]} 42... Re1+ {[%clk
0:00:02.7]} 43. Bf1 {[%clk 0:00:04.1]} 43... Qe5 {[%clk 0:00:02.8]} 44. Qxh6+
{[%clk 0:00:04]} 44... Ke8 {[%clk 0:00:03]} 45. Rg5 {[%clk 0:00:04.7]} 45... Qe7
{[%clk 0:00:02]} 46. Qh8+ {[%clk 0:00:04.4]} 46... Kd7 {[%clk 0:00:02.3]} 47.
Qg7 {[%clk 0:00:04.9]} 47... Be6 {[%clk 0:00:01.9]} 48. Qxe7+ {[%clk 0:00:04.9]}
48... Kxe7 {[%clk 0:00:02.8]} 49. Kg2 {[%clk 0:00:05.1]} 49... Kd6 {[%clk
0:00:02.6]} 50. Rg6 {[%clk 0:00:05.1]} 50... Ke5 {[%clk 0:00:02.7]} 51. Bb5
{[%clk 0:00:03.9]} 51... Bd5+ {[%clk 0:00:02.9]} 52. f3 {[%clk 0:00:03.5]} 52...
c4 {[%clk 0:00:02.4]} 53. Rg5+ {[%clk 0:00:03.5]} 53... Kd6 {[%clk 0:00:02.8]}
54. Kf2 {[%clk 0:00:04.4]} 54... Rb1 {[%clk 0:00:02.5]} 55. Be8 {[%clk
0:00:04.5]} 55... Rb2+ {[%clk 0:00:03.1]} 56. Kg3 {[%clk 0:00:04]} 56... c3
{[%clk 0:00:04]} 57. Bg6 {[%clk 0:00:04.4]} 57... c2 {[%clk 0:00:04.5]} 58. Bxc2
{[%clk 0:00:04.7]} 58... Rxc2 {[%clk 0:00:05.4]} 59. Rg6+ {[%clk 0:00:04.5]}
59... Kc5 {[%clk 0:00:05.5]} 60. Kf4 {[%clk 0:00:04.7]} 60... Rc3 {[%clk
0:00:05.4]} 61. Ke5 {[%clk 0:00:04.7]} 61... Re3+ {[%clk 0:00:05.2]} 62. Kf4
{[%clk 0:00:04.8]} 62... Rxf3+ {[%clk 0:00:06.1]} 63. Kg4 {[%clk 0:00:05.4]}
63... Rf1 {[%clk 0:00:06]} 64. Rh6 {[%clk 0:00:04.7]} 64... d3 {[%clk
0:00:06.2]} 65. Rh3 {[%clk 0:00:05.2]} 65... Kd4 {[%clk 0:00:05.6]} 66. Rh4
{[%clk 0:00:04.5]} 66... d2 {[%clk 0:00:05.6]} 67. Kg3+ {[%clk 0:00:05.4]} 67...
Be4 {[%clk 0:00:06]} 68. Rh8 {[%clk 0:00:05.2]} 68... d1=Q {[%clk 0:00:05.9]}
69. Rd8+ {[%clk 0:00:06.1]} 69... Bd5 {[%clk 0:00:06.4]} 0-1

[Event "Late-Titled-Tuesday-Blitz-May-14-2024"]
[Site "Chess.com"]
[Date "2024.05.14"]
[Round "11"]
[White "Orest_Vovk"]
[Black "Licancabur"]
[Result "1-0"]
[WhiteElo "2678"]
[BlackElo "2500"]
[TimeControl "180+1"]
[EndTime "16:05:07 PDT"]
[Termination "Orest_Vovk won on time"]

1. h4 {[%clk 0:02:51.7]} 1... d5 {[%clk 0:02:59.5]} 2. h5 {[%clk 0:02:51.6]}
2... e5 {[%clk 0:02:58.9]} 3. h6 {[%clk 0:02:50]} 3... Nxh6 {[%clk 0:02:57.5]}
4. d4 {[%clk 0:02:49.7]} 4... Nc6 {[%clk 0:02:49.2]} 5. Bxh6 {[%clk 0:02:49.9]}
5... gxh6 {[%clk 0:02:48.2]} 6. dxe5 {[%clk 0:02:50.8]} 6... Nxe5 {[%clk
0:02:46]} 7. Nf3 {[%clk 0:02:51.4]} 7... Nxf3+ {[%clk 0:02:44.4]} 8. gxf3 {[%clk
0:02:52.3]} 8... Bg7 {[%clk 0:02:43.5]} 9. Nc3 {[%clk 0:02:53]} 9... c6 {[%clk
0:02:40.3]} 10. Qd3 {[%clk 0:02:51.3]} 10... Qf6 {[%clk 0:02:32]} 11. Bh3 {[%clk
0:02:48.4]} 11... Bxh3 {[%clk 0:02:22.8]} 12. Rxh3 {[%clk 0:02:49.3]} 12... Qg6
{[%clk 0:02:23.3]} 13. Rg3 {[%clk 0:02:45.3]} 13... Qxd3 {[%clk 0:02:21.8]} 14.
cxd3 {[%clk 0:02:46.2]} 14... Be5 {[%clk 0:02:19.7]} 15. Rh3 {[%clk 0:02:44.1]}
15... Rg8 {[%clk 0:02:10.9]} 16. O-O-O {[%clk 0:02:31.2]} 16... Ke7 {[%clk
0:02:01.4]} 17. d4 {[%clk 0:02:25.5]} 17... Bd6 {[%clk 0:01:52.3]} 18. e3 {[%clk
0:02:23.8]} 18... Rg6 {[%clk 0:01:42.2]} 19. Rdh1 {[%clk 0:02:20.3]} 19... Kf8
{[%clk 0:01:40]} 20. Rxh6 {[%clk 0:02:18.9]} 20... Rxh6 {[%clk 0:01:27]} 21.
Rxh6 {[%clk 0:02:19.8]} 21... Ke7 {[%clk 0:01:26.6]} 22. Rxh7 {[%clk 0:02:17.8]}
22... Rg8 {[%clk 0:01:27.2]} 23. Kd2 {[%clk 0:02:15]} 23... Rg2 {[%clk
0:01:18.4]} 24. Ke2 {[%clk 0:02:10.1]} 24... Rg1 {[%clk 0:01:12.1]} 25. Rh8
{[%clk 0:01:48.7]} 25... Rc1 {[%clk 0:01:03.2]} 26. Kd2 {[%clk 0:01:21.5]} 26...
Rf1 {[%clk 0:00:54.7]} 27. Nd1 {[%clk 0:01:18.3]} 27... Bb4+ {[%clk 0:00:53.2]}
28. Kc2 {[%clk 0:01:14.1]} 28... Bd6 {[%clk 0:00:43.1]} 29. f4 {[%clk
0:01:07.6]} 29... a6 {[%clk 0:00:39.6]} 30. a3 {[%clk 0:01:04.4]} 30... c5
{[%clk 0:00:34.1]} 31. dxc5 {[%clk 0:01:00.8]} 31... Bxc5 {[%clk 0:00:34.3]} 32.
Kd2 {[%clk 0:01:01.5]} 32... d4 {[%clk 0:00:33.1]} 33. Ke2 {[%clk 0:00:58.8]}
33... Rg1 {[%clk 0:00:29.2]} 34. b4 {[%clk 0:00:53.4]} 34... Bd6 {[%clk
0:00:22.8]} 35. exd4 {[%clk 0:00:41.2]} 35... Bxf4 {[%clk 0:00:21.4]} 36. Ra8
{[%clk 0:00:33.1]} 36... Kd7 {[%clk 0:00:13.9]} 37. Ra7 {[%clk 0:00:26.9]} 37...
Kc8 {[%clk 0:00:13.1]} 38. Ra8+ {[%clk 0:00:26.3]} 38... Bb8 {[%clk 0:00:12.1]}
39. b5 {[%clk 0:00:21.4]} 39... axb5 {[%clk 0:00:11]} 40. Ra5 {[%clk 0:00:20.4]}
40... Rg5 {[%clk 0:00:10.5]} 41. Nc3 {[%clk 0:00:11.6]} 41... Rg4 {[%clk
0:00:08.6]} 42. Nxb5 {[%clk 0:00:08.5]} 42... Kd7 {[%clk 0:00:08.5]} 43. Ra8
{[%clk 0:00:07.7]} 43... Bh2 {[%clk 0:00:07.9]} 44. Rf8 {[%clk 0:00:06.9]} 44...
Ke7 {[%clk 0:00:06.5]} 45. Rh8 {[%clk 0:00:07]} 45... Rg5 {[%clk 0:00:05.6]} 46.
Rxh2 {[%clk 0:00:06]} 46... Rxb5 {[%clk 0:00:05.6]} 47. Rh3 {[%clk 0:00:06.3]}
47... Rb2+ {[%clk 0:00:05.5]} 48. Kf1 {[%clk 0:00:06.5]} 48... Rd2 {[%clk
0:00:05.1]} 49. Rb3 {[%clk 0:00:06.6]} 49... Rxd4 {[%clk 0:00:04.3]} 50. Rxb7+
{[%clk 0:00:07.5]} 50... Ke6 {[%clk 0:00:04.8]} 51. Ra7 {[%clk 0:00:07.7]} 51...
Rd2 {[%clk 0:00:04.7]} 52. a4 {[%clk 0:00:07]} 52... Ra2 {[%clk 0:00:05.2]} 53.
a5 {[%clk 0:00:07.4]} 53... Kf6 {[%clk 0:00:02.8]} 54. a6 {[%clk 0:00:07.3]}
54... Ra3 {[%clk 0:00:03.1]} 55. Ra8 {[%clk 0:00:07.2]} 55... Kg7 {[%clk
0:00:02.8]} 56. Kg2 {[%clk 0:00:07.4]} 56... Kh7 {[%clk 0:00:01.6]} 57. Kf1
{[%clk 0:00:04.5]} 57... Kg7 {[%clk 0:00:02]} 58. Ke2 {[%clk 0:00:05.2]} 58...
Kh7 {[%clk 0:00:02.2]} 59. Kd2 {[%clk 0:00:05.7]} 59... Kg7 {[%clk 0:00:02.8]}
60. Kc2 {[%clk 0:00:06.1]} 60... Kh7 {[%clk 0:00:02.2]} 61. Kb2 {[%clk
0:00:06.7]} 61... Ra5 {[%clk 0:00:01.5]} 62. Kb3 {[%clk 0:00:07.1]} 62... Kg7
{[%clk 0:00:00.4]} 63. Kb4 {[%clk 0:00:07.6]} 1-0

[Event "Late-Titled-Tuesday-Blitz-May-14-2024"]
[Site "Chess.com"]
[Date "2024.05.14"]
[Round "11"]
[White "SujanaLohani"]
[Black "Slovineanu"]
[Result "0-1"]
[WhiteElo "2120"]
[BlackElo "2477"]
[TimeControl "180+1"]
[EndTime "16:05:11 PDT"]
[Termination "Slovineanu won on time"]

1. e4 {[%clk 0:03:00.9]} 1... c6 {[%clk 0:02:59.6]} 2. d4 {[%clk 0:02:59.6]}
2... d5 {[%clk 0:02:59.9]} 3. exd5 {[%clk 0:02:59.7]} 3... cxd5 {[%clk 0:03:00]}
4. Bd3 {[%clk 0:02:59.9]} 4... Nc6 {[%clk 0:03:00]} 5. c3 {[%clk 0:03:00]} 5...
Nf6 {[%clk 0:03:00.1]} 6. Bf4 {[%clk 0:02:59.9]} 6... Bg4 {[%clk 0:03:00.1]} 7.
Qb3 {[%clk 0:02:59.9]} 7... Qd7 {[%clk 0:03:00.5]} 8. h3 {[%clk 0:02:59.5]} 8...
Bh5 {[%clk 0:03:00]} 9. Nd2 {[%clk 0:02:58.6]} 9... e6 {[%clk 0:02:59.5]} 10.
Ngf3 {[%clk 0:02:59.1]} 10... Bxf3 {[%clk 0:02:59]} 11. Nxf3 {[%clk 0:02:58.1]}
11... Bd6 {[%clk 0:02:58.8]} 12. Ne5 {[%clk 0:02:52.5]} 12... Qc7 {[%clk
0:02:51.1]} 13. O-O {[%clk 0:02:52.8]} 13... O-O {[%clk 0:02:48.5]} 14. Rfe1
{[%clk 0:02:50.7]} 14... a6 {[%clk 0:02:43.5]} 15. Rad1 {[%clk 0:02:34.5]} 15...
Nd7 {[%clk 0:02:35.1]} 16. Nxd7 {[%clk 0:02:28.8]} 16... Qxd7 {[%clk 0:02:34.9]}
17. Bxd6 {[%clk 0:02:27.4]} 17... Qxd6 {[%clk 0:02:35.1]} 18. Qb6 {[%clk
0:02:23.2]} 18... Rfd8 {[%clk 0:02:18.3]} 19. Re3 {[%clk 0:02:20.8]} 19... Ne7
{[%clk 0:02:02.6]} 20. Qxd6 {[%clk 0:02:19.3]} 20... Rxd6 {[%clk 0:02:02.2]} 21.
a4 {[%clk 0:02:17.1]} 21... b5 {[%clk 0:01:49.3]} 22. Ra1 {[%clk 0:02:09.6]}
22... Rb8 {[%clk 0:01:32.4]} 23. b4 {[%clk 0:02:09.4]} 23... g6 {[%clk
0:01:26.2]} 24. axb5 {[%clk 0:02:05.7]} 24... axb5 {[%clk 0:01:26.3]} 25. Ra5
{[%clk 0:02:05.9]} 25... Rdb6 {[%clk 0:01:24.7]} 26. Re2 {[%clk 0:02:06.2]}
26... Nc8 {[%clk 0:01:23.9]} 27. Rea2 {[%clk 0:02:04.2]} 27... Nd6 {[%clk
0:01:23.6]} 28. Ra7 {[%clk 0:02:00.2]} 28... Kf8 {[%clk 0:01:18.2]} 29. Rd7
{[%clk 0:01:49.7]} 29... R8b7 {[%clk 0:01:18.2]} 30. Ra7 {[%clk 0:01:42.7]}
30... Rxa7 {[%clk 0:01:15.9]} 31. Rxa7 {[%clk 0:01:42.7]} 31... Rc6 {[%clk
0:01:14.3]} 32. Ra3 {[%clk 0:01:41.9]} 32... Rc7 {[%clk 0:01:08.6]} 33. Kf1
{[%clk 0:01:40.2]} 33... Ke7 {[%clk 0:01:08.5]} 34. Ke2 {[%clk 0:01:39.5]} 34...
f6 {[%clk 0:01:08.8]} 35. Kd2 {[%clk 0:01:39.2]} 35... e5 {[%clk 0:01:08]} 36.
Ra5 {[%clk 0:01:34.3]} 36... Ke6 {[%clk 0:00:42.6]} 37. dxe5 {[%clk 0:01:27.6]}
37... fxe5 {[%clk 0:00:40.7]} 38. f3 {[%clk 0:01:24.6]} 38... Nc4+ {[%clk
0:00:32.9]} 39. Bxc4 {[%clk 0:01:23.8]} 39... bxc4 {[%clk 0:00:32.4]} 40. Ra6+
{[%clk 0:01:20.4]} 40... Kd7 {[%clk 0:00:27.9]} 41. Ke3 {[%clk 0:01:08]} 41...
Rc6 {[%clk 0:00:20.7]} 42. Rxc6 {[%clk 0:00:49.5]} 42... Kxc6 {[%clk 0:00:20.6]}
43. f4 {[%clk 0:00:45.1]} 43... exf4+ {[%clk 0:00:19.6]} 44. Kxf4 {[%clk
0:00:45.4]} 44... d4 {[%clk 0:00:19.4]} 45. cxd4 {[%clk 0:00:44.6]} 45... Kb5
{[%clk 0:00:15.7]} 46. d5 {[%clk 0:00:37.7]} 46... c3 {[%clk 0:00:14.9]} 47. Ke3
{[%clk 0:00:29.6]} 47... Kxb4 {[%clk 0:00:14.8]} 48. d6 {[%clk 0:00:25.9]} 48...
Kb3 {[%clk 0:00:15.3]} 49. d7 {[%clk 0:00:25.6]} 49... c2 {[%clk 0:00:15.9]} 50.
d8=Q {[%clk 0:00:21.6]} 50... c1=Q+ {[%clk 0:00:16.2]} 51. Qd2 {[%clk
0:00:20.3]} 51... Qxd2+ {[%clk 0:00:16.2]} 52. Kxd2 {[%clk 0:00:21.2]} 52... Kc4
{[%clk 0:00:16.7]} 53. Ke3 {[%clk 0:00:21.6]} 53... Kd5 {[%clk 0:00:17.2]} 54.
Kf4 {[%clk 0:00:22.1]} 54... Ke6 {[%clk 0:00:17.7]} 55. Kg5 {[%clk 0:00:22.3]}
55... Kf7 {[%clk 0:00:18.2]} 56. Kh6 {[%clk 0:00:18.1]} 56... Kg8 {[%clk
0:00:18.4]} 57. h4 {[%clk 0:00:11.6]} 57... Kh8 {[%clk 0:00:18.5]} 58. Kg5
{[%clk 0:00:04.5]} 58... Kg7 {[%clk 0:00:18.4]} 59. g4 {[%clk 0:00:04]} 59...
h6+ {[%clk 0:00:15.8]} 60. Kf4 {[%clk 0:00:04.4]} 60... Kf6 {[%clk 0:00:11.2]}
61. g5+ {[%clk 0:00:03.7]} 61... hxg5+ {[%clk 0:00:06.8]} 62. hxg5+ {[%clk
0:00:04.6]} 62... Ke6 {[%clk 0:00:07.3]} 0-1